{"text_format":"1","workbook":"xlsx","n_sheets":1,"sheets":["18.11.20"],"not_rendered":{"charts":0,"images":1,"macros":1,"external_links":0,"defined_names":7,"comments":1,"pivot_tables":0},"unopened":[],"bounds":{"document_bytes":16777216,"sheet_cells":100000,"rows_first":2000,"rows_last":500,"rows_between":2000,"halvings":0,"cell_chars":16384,"cell_head_chars":4096},"cells_cut":0,"cells_raw":0,"read":"whole","date_system":"1900"}

{"sheet":"18.11.20","index":0,"n_rows":309,"n_cols":16,"rows_kept":309,"cut":false,"hidden":false,"merged":[[0,25,2,25]]}
[null,"2020-11-18"]
[null,"Имена","Фамилия","Где садятся","Теплицы","Стройка","Азиз","Нефтянка","Никишова","Касатов","Генерал","Арташ","Сироп","Всего","Оплата","Долг"]
[-10,"134 Ж / 130 М",{"$f":"SUMPRODUCT(IF($N4:$N305=1,IF(RIGHT(A4:A305,1)=\"ж\",1,0),0))&\" жен / \"&SUMPRODUCT(IF($N4:$N305=1,IF(RIGHT(A4:A305,1)=\"м\",1,0),0))&\" муж\"","v":"10 жен / 7 муж"},{"$f":"IF(Y3-N3=0,\"0\",IF(Y3-N3>0,\"ещё \"&Y3-N3&\" Человек\",\"Лишних = \"&N3-Y3))","v":"Лишних = 17"},{"$f":"E306&\" / \"&SUMPRODUCT(IF(E4:E306=1,IF(RIGHT($A$4:$A306,1)=\"м\",1,0),0))&\"м\"","v":"4 / 1м"},{"$f":"F306&\" / \"&SUMPRODUCT(IF(F4:F306=1,IF(RIGHT($A$4:$A306,1)=\"м\",1,0),0))&\"м\"","v":"0 / 0м"},{"$f":"G306&\" / \"&SUMPRODUCT(IF(G4:G306=1,IF(RIGHT($A$4:$A306,1)=\"м\",1,0),0))&\"м\"","v":"6 / 2м"},{"$f":"H306&\" / \"&SUMPRODUCT(IF(H4:H306=1,IF(RIGHT($A$4:$A306,1)=\"м\",1,0),0))&\"м\"","v":"0 / 0м"},{"$f":"I306&\" / \"&SUMPRODUCT(IF(I4:I306=1,IF(RIGHT($A$4:$A306,1)=\"м\",1,0),0))&\"м\"","v":"1 / 0м"},{"$f":"J306&\" / \"&SUMPRODUCT(IF(J4:J306=1,IF(RIGHT($A$4:$A306,1)=\"м\",1,0),0))&\"м\"","v":"0 / 0м"},{"$f":"K306&\" / \"&SUMPRODUCT(IF(K4:K306=1,IF(RIGHT($A$4:$A306,1)=\"м\",1,0),0))&\"м\"","v":"4 / 3м"},{"$f":"L306&\" / \"&SUMPRODUCT(IF(L4:L306=1,IF(RIGHT($A$4:$A306,1)=\"м\",1,0),0))&\"м\"","v":"0 / 0м"},{"$f":"M306&\" / \"&SUMPRODUCT(IF(M4:M306=1,IF(RIGHT($A$4:$A306,1)=\"м\",1,0),0))&\"м\"","v":"2 / 1м"},{"$f":"SUM($N$4:$N305)","v":17}]
["1 м","Антон","Авдосеев(Мол)","Стоянка",null,null,null,null,null,null,null,null,null,{"$f":"IF(G4<>\"\",G4,IF(H4<>\"\",H4,IF(I4<>\"\",I4,IF(E4<>\"\",E4,IF(J4<>\"\",J4,IF(F4<>\"\",F4,IF(M4<>\"\",M4,IF(K4<>\"\",K4,IF(L4<>\"\",L4,\"\")))))))))","v":""}]
["2 м","Даниил","Алексеев(Мол)","Стоянка",null,null,null,null,null,null,null,null,null,""]
["3 м","Саша","Алекторов","Стоянка",null,null,null,null,null,null,null,null,null,""]
["4 ж","Дарья","Балашова(Мол)","Стоянка",null,null,1,null,null,null,null,null,null,1]
["5 ж","Оксана","Батманова","Стоянка",null,null,null,null,null,null,null,null,null,""]
["6 ж","Наташа","Батрова","Стоянка",null,null,null,null,null,null,null,null,null,""]
["7 м","Игорь","Бел Настенько","Стоянка",null,null,1,null,null,null,null,null,null,1]
["8 ж","Люда","Белякова","Стоянка",null,null,null,null,null,null,null,null,null,""]
["9 м","Артём","Бирюков(Мол)","Стоянка",null,null,null,null,null,null,null,null,null,""]
["10 м","Максим","Божановский(Мол)","Стоянка",null,null,null,null,null,null,null,null,null,""]
["11 ж","Надя","Болтунова","Стоянка",1,null,null,null,null,null,null,null,null,1]
["12 м","Артём","Братский(Канд)","Стоянка",null,null,null,null,null,null,1,null,null,1]
["13 м","Вова","Глушенков","Стоянка",null,null,null,null,null,null,null,null,null,""]
["14 м","Никита","Моисеев","Стоянка",null,null,null,null,null,null,null,null,null,"",null,-800]
["15 ж","Даша","Голушко","Стоянка",null,null,null,null,null,null,null,null,null,""]
["16 м","Яша","Гук","Стоянка",null,null,null,null,null,null,null,null,null,""]
["17 ж","Люда","Демидова","Стоянка",null,null,null,null,1,null,null,null,null,1]
["18 ж","Алена","Демидова(Дочь)","Стоянка",null,null,null,null,null,null,null,null,null,""]
["19 м","Владимир","Долгополов(Мол)","Стоянка",null,null,null,null,null,null,null,null,null,"",null,-700]
["20 м","Сергей","Ефремов(Мол)","Стоянка",null,null,null,null,null,null,null,null,null,""]
["21 ж","Михаил","Клопов","Стоянка",null,null,null,null,null,null,null,null,null,""]
["22 ж","Таня","Захарова","Стоянка",null,null,null,null,null,null,null,null,null,""]
["23 м","Олег","Казаков","Стоянка",null,null,null,null,null,null,null,null,null,"",null,-800]
["24 ж","Людмила","Калашникова(Мол)","Стоянка",null,null,null,null,null,null,null,null,null,""]
["25 ж","Елена","Калячинко","Стоянка",null,null,null,null,null,null,null,null,null,""]
["26 м","Сергей","Кандеев","Стоянка",null,null,null,null,null,null,null,null,null,"",null,-1200]
["27 ж","Ирина","Киселева","Стоянка",null,null,null,null,null,null,null,null,null,""]
["28 м","Андрей","Колупаев","Стоянка",null,null,null,null,null,null,null,null,null,""]
["29 ж","Марина","Королева","Стоянка",null,null,null,null,null,null,null,null,null,"",null,-800]
["30 ж","Екатерина","Крыжановская","Стоянка",null,null,null,null,null,null,null,null,null,""]
["31 м","Олег","Кудашов","Стоянка",null,null,null,null,null,null,null,null,null,"",null,-500]
["32 м","Виктор","Кузнецов","Стоянка",null,null,null,null,null,null,null,null,null,""]
["33 ж","Мария","Кузнецова","Стоянка",1,null,null,null,null,null,null,null,null,1]
["34 ж","Люда","Ларина ","Стоянка",null,null,null,null,null,null,null,null,null,""]
["35 м","Андрей","Лесневский","Стоянка",null,null,null,null,null,null,null,null,null,""]
["36 м","Вова","Литвинов","Стоянка",null,null,null,null,null,null,null,null,null,""]
["37 м","Виталя","Любимов(Мол)","Стоянка",null,null,null,null,null,null,null,null,null,""]
["38 ж","Татьяна","Мазилкина","Стоянка",null,null,null,null,null,null,null,null,null,""]
["39 м","Сергей","Макеев","Стоянка",null,null,null,null,null,null,null,null,null,""]
["40 ж","Мария","Марченко","Стоянка",null,null,null,null,null,null,null,null,null,"",null,-800]
["41 ж","Лена","Матянина","Стоянка",null,null,null,null,null,null,null,null,null,""]
["42 м","Тагир","Найденов","Стоянка",null,null,null,null,null,null,null,null,null,"",null,-800]
["43 м","Юра","Найденов","Стоянка",null,null,null,null,null,null,null,null,null,""]
["44 м","Рустам","Найденов Папа","Стоянка",null,null,null,null,null,null,null,null,null,""]
["45 ж","Оля","Найденов(Сноха)","Стоянка",null,null,null,null,null,null,null,null,null,""]
["46 м","Исон","Найденов(Сын)","Стоянка",null,null,null,null,null,null,null,null,null,""]
["47 ж","Нина","Найденова","Стоянка",null,null,null,null,null,null,null,null,null,""]
["48 ж","Лариса","Найденова","Стоянка",null,null,null,null,null,null,null,null,null,""]
["49 ж","Луиза","Найденова","Стоянка",null,null,null,null,null,null,null,null,null,""]
["50 мж","Доня","Найденова","Стоянка",null,null,null,null,null,null,null,null,null,""]
["51 ж","Даша","Найденова(Дочь)","Стоянка",1,null,null,null,null,null,null,null,null,1]
["52 ж","Рамина","Найденова(Дочь)","Стоянка",null,null,null,null,null,null,null,null,null,""]
["53 ж","Марина","Найденова(Жена)","Стоянка",null,null,null,null,null,null,null,null,null,""]
["54 м","Леша","Никитин","Стоянка",null,null,null,null,null,null,null,null,null,""]
["55 м","Миша","Никитин","Стоянка",null,null,null,null,null,null,null,null,null,""]
["56 ж","Кристина","Никитина","Стоянка",null,null,null,null,null,null,null,null,null,""]
["57 ж","Виктория","Норавян","Стоянка",null,null,null,null,null,null,null,null,null,""]
["58 ж","Ольга","Осьмак","Стоянка",null,null,null,null,null,null,null,null,null,""]
["59 мж","Женя ","Павлов","Стоянка",null,null,null,null,null,null,null,null,null,""]
["60 ж","Вера","Панина","Стоянка",null,null,null,null,null,null,1,null,null,1]
["61 ж","Лиза","Пономаренко","Стоянка",null,null,null,null,null,null,null,null,null,"",null,-200]
["62 ж","Настя","Прохорова(Мол)","Стоянка",null,null,null,null,null,null,null,null,null,""]
["63 м","Гена","Пуг Харитонов","Стоянка",null,null,null,null,null,null,null,null,null,""]
["64 м","Ваня","Пугин","Стоянка",null,null,null,null,null,null,null,null,null,"",null,-700]
["65 мж","Юрий","Пышкин","Стоянка",null,null,null,null,null,null,null,null,null,{"$f":"IF(G68<>\"\",G68,IF(H68<>\"\",H68,IF(I68<>\"\",I68,IF(E68<>\"\",E68,IF(J68<>\"\",J68,IF(F68<>\"\",F68,IF(M68<>\"\",M68,IF(K68<>\"\",K68,IF(L68<>\"\",L68,\"\")))))))))","v":""}]
["66 ж","Вероника","Родина(Мол)","Стоянка",null,null,null,null,null,null,null,null,null,""]
["67 ж","Яна","Рындина","Стоянка",null,null,null,null,null,null,null,null,null,"",null,-1500]
["68 ж","Галя","Сахинова","Стоянка",null,null,null,null,null,null,null,null,null,""]
["69 ж","Настя","Сергеева(Мол)","Стоянка",null,null,null,null,null,null,null,null,null,""]
["70 ж","Оксана","Сим Талалаева","Стоянка",null,null,null,null,null,null,null,null,null,""]
["71 м","Антон","Симкин","Стоянка",null,null,null,null,null,null,null,null,null,"",null,-1300]
["72 ","Вася","Синичкин","Стоянка",null,null,null,null,null,null,null,null,null,"",null,-800]
["73 м","Аркадий","Сироткин","Стоянка",null,null,null,null,null,null,null,null,null,"",null,-4500]
["74 ж","Виктория","Смирнова(Мол)","Стоянка",null,null,null,null,null,null,null,null,null,""]
["75 м","Владислав","Солоп(Мол)","Стоянка",null,null,null,null,null,null,null,null,null,""]
["76 м","Паша","Стояненко","Стоянка",null,null,null,null,null,null,null,null,null,"",null,-500]
["77 ж","Ольга","Стратилова(Мол)","Стоянка",null,null,null,null,null,null,null,null,null,""]
["78 ж","Рената","Стратилова(Мол)","Стоянка",null,null,null,null,null,null,null,null,null,""]
["79 м","Дима","Студёнов","Стоянка",null,null,null,null,null,null,null,null,null,"",null,-2100]
["80 ж","Галя С","Студёнова Бабанова","Стоянка",null,null,null,null,null,null,null,null,null,"",null,-600]
["81 ж","Люда","Сукм Димидова","Стоянка",null,null,null,null,null,null,null,null,null,""]
["82 м","Сергей","Сукман","Стоянка",null,null,null,null,null,null,null,null,null,"",null,-800]
["83 ж","Анастасия","Сусликова(Мол)","Стоянка",null,null,null,null,null,null,null,null,null,""]
["84 ж","Наташа","Тимашкова","Стоянка",null,null,null,null,null,null,null,null,null,""]
["85 ж","Татьяна","Токарева","Стоянка",null,null,null,null,null,null,null,null,null,""]
["86 мж","Максимилиан","Шульц (Мол)","Стоянка",null,null,null,null,null,null,null,null,null,""]
["87 м","Максим","Новиков","Стоянка",null,null,null,null,null,null,null,null,null,""]
["88 ж","Валентина","Фишер(Мол)","Стоянка",null,null,null,null,null,null,null,null,null,""]
["89 м","Алексей","Шевченко","Стоянка",null,null,null,null,null,null,null,null,null,"",null,-500]
["90 м","Владимир","Шуков(Мол)","Стоянка",null,null,null,null,null,null,null,null,null,""]
["91 м","Кирилл","Власов","Стоянка",null,null,null,null,null,null,null,null,null,"",null,-800]
["92 ж","Ирина","Шур Игунова(Бабуш)","Стоянка",null,null,null,null,null,null,null,null,1,1]
["93 мж","Наталья","Шуршилова","Стоянка",null,null,null,null,null,null,null,null,null,""]
["94 ж","Вика","Шуршилова(Мол)","Стоянка",null,null,null,null,null,null,null,null,null,""]
["95 м","Д.Рома","Янгазов","Стоянка",null,null,null,null,null,null,null,null,null,"",null,-1400]
["96 ж","Анастасия","Абросимова(Мол)","Семь Гномов",null,null,null,null,null,null,null,null,null,""]
["97 м","Александр","Агафонов(Мол)","Семь Гномов",null,null,null,null,null,null,null,null,null,""]
["98 мж","Люся","Амангалиева","Семь Гномов",null,null,1,null,null,null,null,null,null,1]
["99 мж","Камажай","Амангалиев","Семь Гномов",null,null,null,null,null,null,null,null,null,""]
["100 м","Илья","Андреев(Мол)","Семь Гномов",null,null,null,null,null,null,null,null,null,""]
["101 м","Даниил","Беляков","Семь Гномов",null,null,null,null,null,null,null,null,null,"",null,-800]
["102 ж","Марина","Арефьева","Семь Гномов",null,null,null,null,null,null,null,null,null,""]
["103 мж","Ангелина","Арикеева(Мол)","Семь Гномов",null,null,null,null,null,null,null,null,null,""]
["104 м","Никита","Баринов(Мол)","Семь Гномов",null,null,null,null,null,null,null,null,null,""]
["105 ж","Оля","Бирюкова","Семь Гномов",null,null,null,null,null,null,null,null,null,""]
["106 м","Максим","Бочкарёв(Мол)","Семь Гномов",null,null,null,null,null,null,null,null,null,""]
["107 м","Саша","Бредихин","Семь Гномов",null,null,1,null,null,null,null,null,null,1]
["108 ж","Света","Буркевич","Семь Гномов",null,null,null,null,null,null,null,null,null,"",null,-1400]
["109 ж","Зоя","Быстрова","Семь Гномов",null,null,null,null,null,null,null,null,null,""]
["110 ж","Михаил","Шахов","Семь Гномов",null,null,null,null,null,null,null,null,null,""]
["111 мж","Наталья","Мих Васильева","Семь Гномов",null,null,null,null,null,null,null,null,null,""]
["112 м","Денис","Васильчук","Семь Гномов",null,null,null,null,null,null,null,null,null,"",null,-1600]
["113 ж","Гуля","Вахитова","Семь Гномов",null,null,null,null,null,null,null,null,null,"",null,-6100]
["114 ж","Дарья","Веретенникова(Мол)","Семь Гномов",null,null,1,null,null,null,null,null,null,1,null,-700]
["115 м","Александр","Ветушнов","Семь Гномов",null,null,null,null,null,null,null,null,null,""]
["116 ж","Марина","Воеводина(Мол)","Семь Гномов",null,null,null,null,null,null,null,null,null,""]
["117 м","Дима","Володин","Семь Гномов",null,null,null,null,null,null,null,null,null,""]
["118 м","Денис","Гаврилов","Семь Гномов",null,null,null,null,null,null,null,null,null,"",null,-1400]
["119 ж","Валентина","Галицкая","Семь Гномов",null,null,null,null,null,null,null,null,null,""]
["120 м","Александр","Галкин","Семь Гномов",null,null,null,null,null,null,null,null,null,""]
["121 мж","Руслан","Гладков(Мол)","Семь Гномов",null,null,null,null,null,null,null,null,null,""]
["122 м","Дима","Голов(Мол)","Семь Гномов",null,null,null,null,null,null,null,null,null,""]
["123 ж","Мария","Голубева","Семь Гномов",null,null,null,null,null,null,null,null,null,"",null,"Не брать"]
["124 ж","Дарья","Голубева(Мол)","Семь Гномов",null,null,1,null,null,null,null,null,null,1]
["125 м","Даниил","Грачёв","Семь Гномов",null,null,null,null,null,null,1,null,null,1]
["126 м","Данила","Грачев(Мол)","Семь Гномов",null,null,null,null,null,null,null,null,null,""]
["127 м","Александр","Гундарев(Мол)","Семь Гномов",null,null,null,null,null,null,null,null,null,""]
["128 ж","Нина","Гусева 4","Семь Гномов",null,null,null,null,null,null,null,null,null,""]
["129 ж","Кристина","Букина","Семь Гномов",null,null,null,null,null,null,null,null,null,{"$f":"IF(G132<>\"\",G132,IF(H132<>\"\",H132,IF(I132<>\"\",I132,IF(E132<>\"\",E132,IF(J132<>\"\",J132,IF(F132<>\"\",F132,IF(M132<>\"\",M132,IF(K132<>\"\",K132,IF(L132<>\"\",L132,\"\")))))))))","v":""}]
["130 мж","Виталий","Умбектов","Семь Гномов",null,null,null,null,null,null,null,null,null,""]
["131 ж","Анастасия","Дик(Мол)","Семь Гномов",null,null,null,null,null,null,null,null,null,""]
["132 м","Роман","Егоров(Мол)","Семь Гномов",null,null,null,null,null,null,null,null,null,""]
["133 м","Алексей","Ефимов","Семь Гномов",null,null,null,null,null,null,null,null,null,""]
["134 ж","Софья","Жукова(Мол)","Семь Гномов",null,null,null,null,null,null,null,null,null,""]
["135 ж","Оля","Зайчикова(Мол)","Семь Гномов",null,null,null,null,null,null,null,null,null,""]
["136 ж","Маша","Заярная","Семь Гномов",null,null,null,null,null,null,null,null,null,""]
["137 ж","Милена","Иванова(Мол)","Семь Гномов",null,null,null,null,null,null,null,null,null,""]
["138 мж","Анатолий","Ильичев","Семь Гномов",null,null,null,null,null,null,null,null,null,""]
["139 ж","Алена","Казаченко","Семь Гномов",null,null,null,null,null,null,null,null,null,""]
["140 ж","София","Казаченко","Семь Гномов",null,null,null,null,null,null,null,null,null,""]
["141 ж","Анна","Казаченко","Семь Гномов",null,null,null,null,null,null,null,null,null,""]
["142 м","Сергей","Капралов(Черня)","Семь Гномов",null,null,null,null,null,null,null,null,null,"",null,-400]
["143 ж","Света","Кирьяшкина","Семь Гномов",null,null,null,null,null,null,null,null,null,""]
["144 ж","Елена","Кладчихина Мама","Семь Гномов",null,null,null,null,null,null,null,null,null,""]
["145 ж","Алина","Кладчихина(Мол)","Семь Гномов",null,null,null,null,null,null,null,null,null,""]
["146 ж","Анастасия","Козлова(Мол)","Семь Гномов",null,null,null,null,null,null,null,null,null,""]
["147 ж","Анастасия","Комнатная(Мол)","Семь Гномов",null,null,null,null,null,null,null,null,null,""]
["148 м","Артем","Копеистов(Мол)","Семь Гномов",null,null,null,null,null,null,null,null,null,""]
["149 м","Антон","Креммер","Семь Гномов",null,null,null,null,null,null,null,null,null,"",null,-950]
["150 м","Влад","Кршечковский","Семь Гномов",null,null,null,null,null,null,null,null,null,"",null,-700]
["151 м","Валера","Куимов","Семь Гномов",null,null,null,null,null,null,1,null,null,1]
["152 м","Толя","Куимов(Мол)","Семь Гномов",null,null,null,null,null,null,null,null,null,""]
["153 ж","Надя","Куимова","Семь Гномов",null,null,null,null,null,null,null,null,null,""]
["154 ж","Аня","Кулыгина","Семь Гномов",null,null,null,null,null,null,null,null,null,"",null,-1400]
["155 ж","Настя","Лаврова","Семь Гномов",null,null,null,null,null,null,null,null,null,"",null,-700]
["156 м","Андрей","Лагунов","Семь Гномов",null,null,null,null,null,null,null,null,null,""]
["157 ж","Евгения","Лебединская","Семь Гномов",null,null,null,null,null,null,null,null,null,""]
["158 м","Иван","Лебединский(Мол)","Семь Гномов",null,null,null,null,null,null,null,null,null,""]
["159 ж","Люда","Лев Князкина ","Семь Гномов",null,null,null,null,null,null,null,null,null,"",null,-500]
["160 м","Леша","Левченко","Семь Гномов",null,null,null,null,null,null,null,null,null,""]
["161 м","Вова","Лощилов","Семь Гномов",null,null,null,null,null,null,null,null,null,""]
["162 м","Максим","Макеев","Семь Гномов",null,null,null,null,null,null,null,null,null,""]
["163 м","Толя","Малахов","Семь Гномов",null,null,null,null,null,null,null,null,null,"",null,-500]
["164 ж","Вероника","Малинова(Мол)","Семь Гномов",null,null,null,null,null,null,null,null,null,""]
["165 мж","Рафаэль","Марданшин(Мол)","Семь Гномов",null,null,null,null,null,null,null,null,null,""]
["166 ж","Наташа","Маркина","Семь Гномов",null,null,null,null,null,null,null,null,null,""]
["167 ж","Валерия","Маркова(Мол)","Семь Гномов",null,null,null,null,null,null,null,null,null,""]
["168 ж","Вика","Мармоль-Глазунова(мол)","Семь Гномов",null,null,null,null,null,null,null,null,null,""]
["169 ж","Вероника","Марченко","Семь Гномов",null,null,null,null,null,null,null,null,null,""]
["170 ж","Наташа","Марченко","Семь Гномов",null,null,null,null,null,null,null,null,null,""]
["171 м","Александр","Матушкин(Мол)","Семь Гномов",null,null,null,null,null,null,null,null,null,""]
["172 м","Илья","Мельников(Мол)","Семь Гномов",null,null,null,null,null,null,null,null,null,""]
["173 ж","Ольга","Мещерякова","Семь Гномов",null,null,null,null,null,null,null,null,null,""]
["174 ж","Наташа","Миллер","Семь Гномов",null,null,null,null,null,null,null,null,null,""]
["175 ж","Валерия","Митрофанова(Мол)","Семь Гномов",null,null,null,null,null,null,null,null,null,""]
["176 ж","Света","Митякина","Семь Гномов",null,null,null,null,null,null,null,null,null,""]
["177 м","Роман","Муслейкин","Семь Гномов",null,null,null,null,null,null,null,null,null,""]
["178 ж","Наташа","Мустафина 10","Семь Гномов",null,null,null,null,null,null,null,null,null,""]
["179 м","Дима","Мусь Харитонов","Семь Гномов",null,null,null,null,null,null,null,null,null,"",null,-2000]
["180 ж","Аня","Мусьянова","Семь Гномов",null,null,null,null,null,null,null,null,null,""]
["181 ж","Анна","Насырова(Мол)","Семь Гномов",null,null,null,null,null,null,null,null,null,""]
["182 мж","Мурад","Ниматулаев(Мол)","Семь Гномов",null,null,null,null,null,null,null,null,null,""]
["183 ж","Елизавета","Носенко(Мол)","Семь Гномов",null,null,null,null,null,null,null,null,null,""]
["184 ж","Лена","Ночевная","Семь Гномов",null,null,null,null,null,null,null,null,null,""]
["185 ж","Аня","Пестова(Мол)","Семь Гномов",null,null,null,null,null,null,null,null,null,""]
["186 мж",null,"Кудряшов","Семь Гномов",null,null,null,null,null,null,null,null,null,""]
["187 м","Коля","Петров","Семь Гномов",null,null,null,null,null,null,null,null,null,""]
["188 ж","Люба","Пикалова","Семь Гномов",null,null,null,null,null,null,null,null,null,""]
["189 м","Коля","Пируев","Семь Гномов",null,null,null,null,null,null,null,null,null,""]
["190 ж","Соня","Пируева","Семь Гномов",null,null,null,null,null,null,null,null,null,""]
["191 м","Андрей","Писарев","Семь Гномов",null,null,null,null,null,null,null,null,null,""]
["192 м","Дима","Пичугин(Мол)","Семь Гномов",null,null,null,null,null,null,null,null,null,""]
["193 м","Владимир","Попов(Мол)","Семь Гномов",null,null,null,null,null,null,null,null,null,{"$f":"IF(G196<>\"\",G196,IF(H196<>\"\",H196,IF(I196<>\"\",I196,IF(E196<>\"\",E196,IF(J196<>\"\",J196,IF(F196<>\"\",F196,IF(M196<>\"\",M196,IF(K196<>\"\",K196,IF(L196<>\"\",L196,\"\")))))))))","v":""}]
["194 м","Андрей","Прусаков","Семь Гномов",null,null,null,null,null,null,null,null,null,"",null,-3500]
["195 мж","Наталья","Пядышева","Семь Гномов",null,null,null,null,null,null,null,null,null,""]
["196 м","Вадим","Романов","Семь Гномов",null,null,null,null,null,null,null,null,null,""]
["197 ж","Катя","Рулеткина","Семь Гномов",null,null,null,null,null,null,null,null,null,""]
["198 м","Артём","Сажнев","Семь Гномов",null,null,null,null,null,null,null,null,null,""]
["199 мж","Канстонтин","Самойлов","Семь Гномов",null,null,null,null,null,null,null,null,null,""]
["200 ж","Света","Саргаева","Семь Гномов",null,null,null,null,null,null,null,null,null,"",null,-1400]
["201 м","Данил","Саркитов(Мол)","Семь Гномов",null,null,null,null,null,null,null,null,null,""]
["202 мж","Гульнара","Саркитова","Семь Гномов",null,null,null,null,null,null,null,null,null,""]
["203 м","Саша","Селябин(Мол)","Семь Гномов",null,null,null,null,null,null,null,null,null,""]
["204 мж","Виталий","Сивакин(Мол)","Семь Гномов",null,null,null,null,null,null,null,null,null,""]
["205 м","Влад","Синодский ","Семь Гномов",null,null,null,null,null,null,null,null,null,"",null,-1400]
["206 ж","Оля","Синодский мама","Семь Гномов",null,null,null,null,null,null,null,null,null,""]
["207 ж","Валерия","Скоробогатова(Мол)","Семь Гномов",null,null,null,null,null,null,null,null,null,""]
["208 ж","Юля","Солдатова","Семь Гномов",null,null,null,null,null,null,null,null,null,""]
["209 мж","Ариана","Столяренко(Мол)","Семь Гномов",null,null,null,null,null,null,null,null,null,""]
["210 ж","Люба","Судакова 4,1","Семь Гномов",null,null,null,null,null,null,null,null,null,"",null,-800]
["211 мж","Анатолий","Суслов(Мол)","Семь Гномов",null,null,null,null,null,null,null,null,null,""]
["212 м","Данил","Тельнов(Мол)","Семь Гномов",null,null,null,null,null,null,null,null,null,""]
["213 мж","Руслан","Теплов(Мол)","Семь Гномов",null,null,null,null,null,null,null,null,null,""]
["214 ж","Елена","Толегенова(Мол)","Семь Гномов",null,null,null,null,null,null,null,null,null,""]
["215 м","Алексей","Топоров","Семь Гномов",null,null,null,null,null,null,null,null,null,""]
["216 ж","Оксана","Топорова","Семь Гномов",null,null,null,null,null,null,null,null,null,""]
["217 ж","Люба","Трафимова(Мол)","Семь Гномов",null,null,null,null,null,null,null,null,null,""]
["218 ж","Ольга","Третьяк","Семь Гномов",null,null,null,null,null,null,null,null,null,"",null,-300]
["219 ж","Елена","Третьякова","Семь Гномов",null,null,null,null,null,null,null,null,null,""]
["220 м","Евгений","Трофимов","Семь Гномов",null,null,null,null,null,null,null,null,null,""]
["221 ж","Люба","Трофимова(Мол)","Семь Гномов",null,null,null,null,null,null,null,null,null,""]
["222 мж","Хадижа","Усманова(Мол)","Семь Гномов",null,null,null,null,null,null,null,null,null,""]
["223 м","Данил","Филиппов(Мол)","Семь Гномов",null,null,null,null,null,null,null,null,null,""]
["224 м","Кирилл","Фирсов(Мол)","Семь Гномов",null,null,null,null,null,null,null,null,null,""]
["225 м","Андрей","Фомичёв","Семь Гномов",null,null,null,null,null,null,null,null,null,""]
["226 ж","Лена","Фомичёва","Семь Гномов",null,null,null,null,null,null,null,null,null,""]
["227 ж","Наташа","Фролова","Семь Гномов",null,null,null,null,null,null,null,null,null,""]
["228 м","Александр","Михайловский","Семь Гномов",null,null,null,null,null,null,null,null,null,""]
["229 м","Влад","Фунтов(Мол)","Семь Гномов",null,null,null,null,null,null,null,null,null,""]
["230 ж","Катя","Фунтова","Семь Гномов",null,null,null,null,null,null,null,null,null,""]
["231 ж","Света","Халова","Семь Гномов",null,null,null,null,null,null,null,null,null,""]
["232 м","Николай","Целинский","Семь Гномов",null,null,null,null,null,null,null,null,null,""]
["233 м","Андрей","Аксёнов(Мол)","Семь Гномов",null,null,null,null,null,null,null,null,null,"",null,-700]
["234 ж","Вероника","Целихина(Мол)","Семь Гномов",null,null,null,null,null,null,null,null,null,""]
["235 м","Рустам","Чарыев","Семь Гномов",null,null,null,null,null,null,null,null,null,"",null,"Не брать"]
["236 ж","Елена","Чебакова","Семь Гномов",null,null,null,null,null,null,null,null,null,""]
["237 мж","Елезавета","Черенова(Мол)","Семь Гномов",null,null,null,null,null,null,null,null,null,""]
["238 м","Саша","Черняев","Семь Гномов",null,null,null,null,null,null,null,null,null,""]
["239 м","Сергей","Шабанов","Семь Гномов",null,null,null,null,null,null,null,null,null,""]
["240 ж","Света","Шаламова","Семь Гномов",null,null,null,null,null,null,null,null,null,""]
["241 м","Данила","Шатунов(Мол)","Семь Гномов",null,null,null,null,null,null,null,null,null,"",null,-1400]
["242 ж","Мария","Шишканова","Семь Гномов",null,null,null,null,null,null,null,null,null,""]
["243 м","Миша","Шишкин","Семь Гномов",1,null,null,null,null,null,null,null,null,1]
["244 м","Данил","Шох(Мол)","Семь Гномов",null,null,null,null,null,null,null,null,null,""]
["245 ж","Алина","Штыренко(Мол)","Семь Гномов",null,null,null,null,null,null,null,null,null,""]
["246 м","Денис","Шугайкин(Мол)","Семь Гномов",null,null,null,null,null,null,null,null,null,""]
["247 м","Андрей","Юркин(Мол)","Семь Гномов",null,null,null,null,null,null,null,null,null,""]
["248 м","Андрей","Якушин(Мол)","Семь Гномов",null,null,null,null,null,null,null,null,null,""]
["249 м","Витя","Абаполов","К.Маркс",null,null,null,null,null,null,null,null,null,""]
["250 ж","Надя","Карпец","К.Маркс",null,null,null,null,null,null,null,null,null,""]
["251 м","Данила","Гордеев(Мол)","К.Маркс",null,null,null,null,null,null,null,null,null,""]
["252 м","Влад","Раин","К.Маркс",null,null,null,null,null,null,null,null,null,""]
["253 м","Владимир","Дорогов","К.Маркс",null,null,null,null,null,null,null,null,null,""]
["254 ж","Татьяна","Дорогова","К.Маркс",null,null,null,null,null,null,null,null,null,""]
["255 ж","Света","Вильмейкина","Ткацкая",null,null,null,null,null,null,null,null,null,"",null,-700]
["256 м","Андрей","Кочетов","Ткацкая",null,null,null,null,null,null,null,null,null,"",null,-400]
["257 ж","Виктория","Мармоль-Глазунова(Мол)","Ткацкая",null,null,null,null,null,null,null,null,null,{"$f":"IF(G260<>\"\",G260,IF(H260<>\"\",H260,IF(I260<>\"\",I260,IF(E260<>\"\",E260,IF(J260<>\"\",J260,IF(F260<>\"\",F260,IF(M260<>\"\",M260,IF(K260<>\"\",K260,IF(L260<>\"\",L260,\"\")))))))))","v":""}]
["258 ж","Валя","Рубина","Ткацкая",null,null,null,null,null,null,null,null,null,""]
["259 м","Игорь","Слёзкин","Ткацкая",null,null,null,null,null,null,null,null,1,1]
["260 ж","Анастасия","Томчук(Мол)","Ткацкая",null,null,null,null,null,null,null,null,null,""]
["261 м","Николай","Цимбалов","Ткацкая",null,null,null,null,null,null,null,null,null,""]
["262 мж","Юлия","Чернобаева(Мол)","Ткацкая",null,null,null,null,null,null,null,null,null,""]
["263 м","Никита","Банников(Мол)","Керамика",null,null,null,null,null,null,null,null,null,""]
["264 ж","Кристина","Джа Юмадилова(Дочь)","Керамика",null,null,null,null,null,null,null,null,null,""]
["265 м","Нариман","Джалилов","Керамика",null,null,null,null,null,null,null,null,null,""]
["266 ж","Оля","Джалилова","Керамика",null,null,null,null,null,null,null,null,null,""]
["267 ж","Люба","Моск Байкова","Керамика",null,null,null,null,null,null,null,null,null,""]
["268 м","Вова","Москаленко","Керамика",null,null,null,null,null,null,null,null,null,""]
["269 ж","Эля","Сабитова","Керамика",null,null,null,null,null,null,null,null,null,"",null,-200]
["270 м","Раф","Тугушев","Керамика",null,null,null,null,null,null,null,null,null,"",null,-400]
["271 ж","Олеся","Цыганкова","Керамика",null,null,null,null,null,null,null,null,null,""]
["272 ж","Наташа","Цыганкова","Керамика",null,null,null,null,null,null,null,null,null,"",null,-700]
["273 м","Сергей","Аверкиев","20 Школа",null,null,null,null,null,null,null,null,null,"",null,-300]
["274 м","Олег","Зубарев","20 Школа",null,null,null,null,null,null,null,null,null,"",null,-900]
["275 ж","Люба","Зубарева","20 Школа",null,null,null,null,null,null,null,null,null,""]
["276 ж","Лена","Калитина","20 Школа",null,null,null,null,null,null,null,null,null,""]
["277 м","Юра","Климов Петин","20 Школа",null,null,null,null,null,null,null,null,null,""]
["278 м","Никита","Климов(Сын)","20 Школа",null,null,null,null,null,null,null,null,null,""]
["279 ж","Ирина","Климова (Петина)","20 Школа",null,null,null,null,null,null,null,null,null,""]
["280 м","Саша","Лихоманов","20 Школа",null,null,null,null,null,null,null,null,null,""]
["281 м","Андрей","Салиенко","20 Школа",null,null,null,null,null,null,null,null,null,"",null,-200]
["282 ж","София","Баева(Мол) 9","Маяковского",null,null,null,null,null,null,null,null,null,""]
["283 ж","Диана","Губская Горобец","Маяковского",null,null,null,null,null,null,null,null,null,""]
["284 м","Антон","Губский","Маяковского",null,null,null,null,null,null,null,null,null,""]
["285 ж","Таня","Солдатенкова","Маяковского",null,null,null,null,null,null,null,null,null,"",null,-700]
["286 мж","Наталья","Тиманова","Маяковского",null,null,null,null,null,null,null,null,null,""]
["287 ж","Оксана","Федорина16.1","Маяковского",null,null,null,null,null,null,null,null,null,"",null,-800]
["288 м","Влад","Шевцов","Маяковского",null,null,null,null,null,null,null,null,null,""]
["289 м","Илья","Шевцов","Маяковского",null,null,null,null,null,null,null,null,null,""]
["290 ж","Таня","Шевцова мама","Маяковского",null,null,null,null,null,null,null,null,null,""]
["291 м","Дима","Щербак","Маяковского",null,null,null,null,null,null,null,null,null,""]
["292 ж","Оля","Яфина Пыхтунова","Маяковского",null,null,null,null,null,null,null,null,null,""]
["293 м","Миша","Барабошкин","Мясокомбинат",null,null,null,null,null,null,null,null,null,""]
["294 м","Алексей","Большов (Мол)","Мясокомбинат",null,null,null,null,null,null,null,null,null,"",null,-200]
["295 м","Марк","Болгаров","Мясокомбинат",null,null,null,null,null,null,null,null,null,""]
["296 м","Ваня","Маринчев (Мол)","Мясокомбинат",null,null,null,null,null,null,null,null,null,"",null,-500]
["297 ж","Маша","Вин Малиева","Мясокомбинат",null,null,null,null,null,null,null,null,null,""]
["298 м","Олег","Виноградов","Мясокомбинат",null,null,null,null,null,null,null,null,null,"",null,-4400]
["299 ж","Ирина","Коновалова ","Мясокомбинат",null,null,null,null,null,null,null,null,null,""]
["300 м","Саша (Оли)","Кудрявцев","Мясокомбинат",null,null,null,null,null,null,null,null,null,""]
["301 ж","Оля (Саши)","Кудрявцева Гвоздюк","Мясокомбинат",null,null,null,null,null,null,null,null,null,""]
["302 м","Андрей","Шпанагель Водитель","Мясокомбинат",null,null,null,null,null,null,null,null,null,""]
[null,null,null,null,{"$f":"SUM(E$4:E305)","v":4},{"$f":"SUM(F$4:F305)","v":0},{"$f":"SUM(G$4:G305)","v":6},{"$f":"SUM(H$4:H305)","v":0},{"$f":"SUM(I$4:I305)","v":1},{"$f":"SUM(J$4:J305)","v":0},{"$f":"SUM(K$4:K305)","v":4},{"$f":"SUM(L$4:L305)","v":0},{"$f":"SUM(M$4:M305)","v":2},{"$f":"SUM(E306:M306)","v":17}]
[null,null,null,null,{"$f":"SUMIF(E$4:E305,1,$O$4:$O305)","v":0},{"$f":"SUMIF(F$4:F305,1,$O$4:$O305)","v":0},{"$f":"SUMIF(G$4:G305,1,$O$4:$O305)","v":0},{"$f":"SUMIF(H$4:H305,1,$O$4:$O305)","v":0},{"$f":"SUMIF(I$4:I305,1,$O$4:$O305)","v":0},{"$f":"SUMIF(J$4:J305,1,$O$4:$O305)","v":0},{"$f":"SUMIF(K$4:K305,1,$O$4:$O305)","v":0},{"$f":"SUMIF(L$4:L305,1,$O$4:$O305)","v":0},{"$f":"SUMIF(M$4:M305,1,$O$4:$O305)","v":0},"*"]
[null,null,null,null,{"$f":"SUMIF(E$4:E305,1,$O$4:$O$305)+E306*200","v":800},{"$f":"SUMIF(F$4:F305,1,$O$4:$O$305)+F306*200","v":0},{"$f":"SUMIF(G$4:G305,1,$O$4:$O$305)+G306*200","v":1200},{"$f":"SUMIF(H$4:H305,1,$O$4:$O$305)+H306*200","v":0},{"$f":"SUMIF(I$4:I305,1,$O$4:$O$305)+I306*200","v":200},{"$f":"SUMIF(J$4:J305,1,$O$4:$O$305)+J306*200","v":0},{"$f":"SUMIF(K$4:K305,1,$O$4:$O$305)+K306*200","v":800},{"$f":"SUMIF(L$4:L305,1,$O$4:$O$305)+L306*200","v":0},{"$f":"SUMIF(M$4:M305,1,$O$4:$O$305)+M306*200","v":400},"*"]
[null,null,null,null,{"$f":"E306*200","v":800},0,1200,0,200,0,800,0,400,{"$f":"SUM(D309:M309)","v":3400}]